bitfinex/quotes_ETHUSD_20260113
["timestamp","ask_amount","ask_price","bid_price","bid_amount"]
[1768319707718,1.37710819,3164.9,3163.9,6.3213123]
[1768319708211,1.37710819,3164.9,3164.0,14.5]
[1768319708616,0.248,3164.9,3164.0,14.5]
[1768319708813,0.248,3164.9,3164.1,2.08213123]
[1768319709315,0.248,3164.9,3164.2,3.16035648]
[1768319709613,1.3865776,3164.9,3164.2,3.16035648]
[1768319709775,1.1385776,3164.7,3162.6,0.051]
[1768319710179,1.1385776,3164.7,3163.4,3.16109414]
[1768319710475,1.1385776,3164.7,3163.3,3.161191]
[1768319711017,1.1385776,3164.7,3163.1,3.16142545]
[1768319711315,1.1385776,3164.7,3163.1,3.16144411]
[1768319711525,1.1385776,3164.5,3163.2,0.31614441]
[1768319711673,1.1385776,3164.5,3162.8,14.5]
[1768319711881,1.1385776,3164.5,3162.6,0.001]
[1768319712176,1.1385776,3164.5,3162.6,3.16293294]
[1768319712391,1.1385776,3164.5,3162.6,17.66293294]
[1768319712595,1.1385776,3164.3,3162.7,1.76629329]
[1768319712806,1.1385776,3164.1,3162.7,1.76629329]
[1768319713274,1.1385776,3164.1,3162.7,4.9280908]
[1768319713675,1.1385776,3163.9,3162.7,1.76629329]
[1768319714676,1.1385776,3163.9,3162.6,0.001]
[1768319715272,1.1385776,3163.8,3162.6,0.001]
[1768319715814,1.13998009,3163.6,3162.6,0.001]
[1768319716125,1.13998009,3163.4,3162.6,0.001]
[1768319717887,1.13998009,3163.2,3162.6,0.001]
[1768319720255,4.30143562,3163.1,3162.6,0.001]
[1768319720553,1.38798009,3163.0,3162.6,0.001]
[1768319721220,1.38798009,3163.0,3162.1,0.00080224]
[1768319721420,1.38798009,3163.0,3162.1,3.1631935]
[1768319721814,1.38798009,3163.0,3162.1,0.00080224]
[1768319722444,3.16165544,3162.9,3162.1,0.00080224]
[1768319722654,0.248,3163.3,3162.2,0.24197862]
[1768319722818,0.248,3163.3,3162.1,0.08242679]
[1768319722819,0.248,3163.3,3162.3,0.03162255]
[1768319723014,0.248,3163.3,3162.1,0.05080224]
[1768319723355,1.38798009,3163.3,3162.1,0.00080224]
[1768319724436,1.13998009,3163.2,3162.1,0.00080224]
[1768319725617,1.13998009,3163.2,3162.4,0.001]
[1768319726257,0.00080144,3165.4,3163.6,1.14377741]
[1768319726422,0.00080144,3165.4,3164.1,9.48136908]
[1768319726746,0.00080144,3165.4,3164.2,0.95313691]
[1768319727148,0.248,3165.2,3164.2,0.95313691]
[1768319727741,1e-08,3165.3,3164.2,0.95313691]
[1768319728053,1e-08,3165.3,3164.6,0.05]
[1768319728247,1e-08,3165.3,3164.3,0.05]
[1768319728449,1e-08,3165.3,3164.4,9.48047022]
[1768319728618,1e-08,3165.3,3164.5,1.05784987]
[1768319729028,0.00080232,3165.6,3164.5,1.05784987]
[1768319729355,0.248,3165.9,3164.7,1.14377741]
[1768319729517,1.13998009,3167.1,3165.4,0.05]
[1768319729714,1.38798009,3166.8,3165.4,0.05]
[1768319730045,1.38798009,3166.8,3165.1,0.05]
[1768319730222,1.38798009,3166.8,3164.8,1.14377741]
[1768319730422,1.38798009,3166.8,3165.3,9.4777746]
[1768319730621,1.13998009,3166.7,3165.3,6.3185164]
[1768319730829,1.13998009,3166.7,3165.3,9.4777746]
[1768319731024,1.13998009,3166.7,3165.3,6.3185164]
[1768319731219,1.13998009,3167.5,3166.1,0.05]
[1768319731418,1.13998009,3167.5,3166.1,0.297]
[1768319731848,0.0234814,3167.8,3166.1,0.297]
[1768319732151,0.248,3167.7,3166.1,0.297]
[1768319732461,0.62019314,3170.2,3168.4,1.14377741]
[1768319732643,3.15338042,3171.2,3169.7,0.05]
[1768319732843,1.13998009,3171.2,3170.2,0.05]
[1768319733153,1.13998009,3171.2,3169.2,0.43497972]
[1768319733154,1.38798009,3171.8,3170.3,0.16446818]
[1768319733455,3.15260647,3172.0,3170.3,0.16446818]
[1768319733751,1.38798009,3171.9,3170.3,0.21446818]
[1768319733955,0.45405866,3171.8,3170.3,1.30824559]
[1768319734153,0.024537,3172.1,3170.9,0.05]
[1768319734453,1.13998009,3171.8,3170.5,0.05]
[1768319734752,0.024537,3172.1,3170.3,0.16446818]
[1768319734918,3.17703321,3172.1,3170.7,3.15380365]
[1768319735117,3.17703321,3172.1,3170.8,0.32038037]
[1768319735118,0.63294235,3172.0,3170.8,0.32038037]
[1768319735453,0.024537,3172.1,3170.6,0.05]
[1768319735663,7.44428459,3172.1,3170.3,0.16446818]
[1768319735966,10.59680768,3172.1,3170.3,0.16446818]
[1768319736274,1.26680936,3171.9,3170.3,0.16446818]
[1768319736555,3.15221845,3172.4,3170.3,0.16446818]
[1768319736556,7.57257598,3171.7,3170.3,0.16446818]
[1768319736720,1.26680936,3171.5,3169.0,0.05]
[1768319736925,1.26680936,3171.5,3169.2,3.15536473]
[1768319737119,1.26680936,3171.5,3169.0,0.05]
[1768319737427,1.26680936,3171.5,3168.4,0.05]
[1768319737618,1.26680936,3171.5,3169.1,3.15538871]
[1768319737821,1.26680936,3171.3,3169.2,0.31553887]
[1768319738017,1.26680936,3171.3,3168.4,0.05]
[1768319738222,1.26680936,3171.3,3168.5,3.15599184]
[1768319738470,1.26680936,3171.1,3168.5,3.15605985]
[1768319738766,1.26680936,3170.9,3168.5,6.31212738]
[1768319739313,1.26680936,3170.9,3168.6,0.05]
[1768319739314,0.248,3170.8,3168.6,0.05]
[1768319739520,0.248,3170.8,3168.7,0.75709415]
[1768319739933,1.51480936,3170.8,3168.7,0.75709415]
[1768319740459,1.26680936,3170.6,3168.2,0.05]
[1768319740657,1.26680936,3170.6,3168.0,0.01104927]
[1768319741374,1.26680936,3170.3,3168.1,0.03156466]
[1768319741541,1.26680936,3169.7,3167.2,0.05]
[1768319741739,1.26680936,3169.5,3167.3,0.03157263]
[1768319741938,1.26680936,3169.5,3167.2,0.05]
[1768319741939,0.248,3169.4,3167.4,3.15713252]
[1768319742246,1.26680936,3169.3,3167.5,0.31571325]
[1768319742446,0.248,3169.4,3167.2,0.05]
[1768319742447,7.57774936,3169.1,3167.2,0.05]
[1768319742666,3.15507177,3169.5,3167.6,0.05]
[1768319742971,0.248,3169.4,3167.6,0.05]
[1768319743172,0.248,3169.4,3167.7,7.17157714]
[1768319743376,0.248,3169.3,3167.9,0.7]
[1768319743534,1.26680936,3169.7,3167.9,0.7]
[1768319743739,0.248,3169.6,3167.9,0.7]
[1768319744595,0.248,3169.6,3168.0,9.46969695]
[1768319744760,3.40297223,3169.6,3168.1,1.01696969]
[1768319744952,0.248,3169.6,3168.1,1.01696969]
[1768319745156,3.15498341,3169.6,3168.1,1.01696969]
[1768319745375,0.248,3169.5,3168.1,1.01696969]
[1768319745842,0.248,3169.5,3168.1,1.06696969]
[1768319746041,1e-08,3169.5,3168.2,1.05366666]
[1768319746575,1e-08,3169.5,3168.3,6.31253352]
[1768319747494,1.26680937,3169.5,3168.3,3.15626676]
[1768319747783,1.26680937,3169.5,3167.9,3.85657163]
[1768319747985,1.26680937,3169.5,3168.0,3.15654769]
[1768319748155,8.35001431,3171.4,3169.5,0.1642268]
[1768319748482,1.26680936,3171.3,3169.5,0.1642268]
[1768319748653,3.15513004,3171.5,3169.6,12.65143864]
[1768319748977,1.26680936,3171.4,3169.6,9.46491669]
[1768319750010,1.26680936,3171.4,3169.9,0.7]
[1768319750167,2.0243163,3171.3,3169.9,0.7]
[1768319750347,1.26680936,3171.2,3169.9,0.7]
[1768319750678,1.26680936,3170.9,3169.9,0.7]
[1768319750848,1.26680936,3170.7,3169.9,0.7]
[1768319751049,1.26680936,3170.7,3169.9,3.85465401]
[1768319751368,0.248,3170.8,3169.9,7.39479305]
[1768319751975,0.248,3170.8,3169.9,4.24011941]
[1768319752145,0.248,3170.8,3169.9,7.00932765]
[1768319752662,3.40181147,3170.8,3169.9,0.7]
[1768319752866,6.55562294,3170.8,3169.9,0.7]
[1768319753155,1.26680936,3170.7,3169.5,0.1642268]
[1768319753883,1.26680936,3170.5,3169.5,3.15499198]
[1768319754083,1.26680936,3170.5,3169.3,0.001]
[1768319754462,1.26680936,3170.5,3169.5,3.15506816]
[1768319754663,3.15417612,3170.4,3169.3,0.001]
[1768319754865,0.44209855,3170.3,3169.3,0.001]
[1768319755054,0.248,3170.2,3169.3,0.001]
[1768319755653,0.16646944,3172.8,3170.3,0.05]
[1768319755876,3.15248526,3172.2,3170.3,0.05]
[1768319756081,0.248,3171.9,3170.3,0.05]
[1768319756294,0.248,3171.9,3170.3,1.25881415]
[1768319756793,0.248,3171.9,3170.4,12.61670448]
[1768319756993,0.248,3171.9,3170.5,1.38755186]
[1768319758092,3.15262356,3172.0,3170.5,1.38755186]
[1768319758279,0.247,3172.0,3170.5,1.38755186]
[1768319758684,0.247,3172.0,3170.6,9.46193148]
[1768319758882,1.26680936,3171.7,3170.5,3.15406518]
[1768319759762,1.26680936,3171.7,3170.4,3.15414699]
[1768319759963,1.26680936,3171.7,3169.4,0.05]
[1768319760161,1.26680936,3171.7,3170.5,3.15407361]
[1768319760477,0.002,3171.8,3170.5,9.77763425]
[1768319760802,3.15097978,3173.7,3170.5,9.77763425]
[1768319760803,0.00076615,3173.1,3171.2,1.20881415]
[1768319761010,0.02278639,3174.5,3173.3,0.16436026]
[1768319761209,0.02278639,3174.5,3172.4,0.16]
[1768319761210,6.32299113,3174.5,3172.1,1.20881415]
[1768319761365,0.63229911,3174.4,3172.1,1.20881415]
[1768319761570,1.26680936,3174.3,3171.4,1.20881415]
[1768319761774,0.63229911,3174.4,3171.6,1.25881415]
[1768319762111,0.63229911,3174.4,3172.4,1.20881415]
[1768319762112,0.0347971,3174.3,3172.4,1.20881415]
[1768319762265,0.247,3174.3,3172.4,1.20881415]
[1768319762465,0.69553224,3174.3,3172.4,1.20881415]
[1768319762797,0.247,3174.2,3172.6,1.20881415]
[1768319762971,0.247,3174.2,3172.9,1.20881415]
[1768319763173,0.05758349,3174.5,3172.9,1.20881415]
[1768319763395,3.39720161,3174.4,3172.5,12.658353]
[1768319763598,0.3419988,3174.3,3172.6,1.2658353]
[1768319763799,0.247,3174.2,3172.6,1.2658353]
[1768319764000,0.3419988,3174.3,3172.6,2.47464945]
[1768319764186,0.247,3174.2,3172.7,1.20881415]
[1768319764386,0.247,3174.2,3172.6,1.2658353]
[1768319764578,0.247,3174.2,3172.5,3.15208825]
[1768319764776,9.45349805,3174.1,3172.0,1.20881415]
[1768319764978,0.0347971,3174.0,3171.8,3.1527719]
[1768319765178,12.6039974,3174.1,3172.1,3.1524672]
[1768319765480,1.30846749,3174.0,3171.0,1.24992903]
[1768319765717,0.002,3174.1,3173.2,0.05]
[1768319765879,0.247,3174.3,3172.4,6.5505035]
[1768319765880,0.247,3174.3,3172.5,1.24992903]
[1768319766076,2e-08,3174.4,3172.5,1.24992903]
[1768319766277,0.247,3174.3,3173.2,0.05]
[1768319766477,2e-08,3174.5,3173.2,1.29992903]
[1768319766780,0.247,3174.9,3173.3,12.6051744]
[1768319766976,0.5870248,3174.9,3173.4,1.39051034]
[1768319767183,3.14927638,3175.4,3173.7,0.05]
[1768319767421,3.14931124,3175.3,3173.7,0.05]
[1768319767582,1.1753786,3175.6,3173.9,0.05]
[1768319767777,3.14928415,3175.4,3173.5,0.05]
[1768319768010,0.247,3175.1,3173.5,0.05]
[1768319768316,1.1753786,3175.6,3173.9,0.05]
[1768319768501,0.247,3175.5,3173.8,0.05]
[1768319768701,0.247,3175.5,3174.0,9.45179583]
[1768319768702,0.45996869,3175.5,3174.0,9.45179583]
[1768319768909,0.247,3175.4,3174.0,6.30119722]
[1768319769104,0.247,3175.4,3174.0,3.15059861]
[1768319769514,0.247,3175.4,3173.4,0.05]
[1768319769719,1.30846749,3175.3,3173.4,3.15110003]
[1768319769884,0.247,3175.2,3172.8,3.15176344]
[1768319770086,0.2817971,3175.1,3173.0,3.15152902]
[1768319770423,1.02067039,3175.3,3172.9,0.31517634]
[1768319770628,0.0347971,3175.2,3173.7,3.15079726]
[1768319770782,3.3965071,3175.1,3173.0,6.3031831]
[1768319770990,6.29894092,3175.2,3173.1,1.28144395]
[1768319771247,0.247,3175.0,3173.2,1.07862186]
[1768319771526,0.247,3175.0,3173.3,0.03151293]
[1768319771692,0.62989409,3175.1,3173.3,0.03151293]
[1768319771893,0.62989409,3175.1,3173.2,1.07862186]
[1768319772099,0.247,3175.0,3173.2,1.07862186]
[1768319772308,0.247,3175.0,3173.3,0.23285509]
[1768319772508,0.0347971,3174.9,3173.2,1.07862186]
[1768319772827,9.4491165,3174.9,3173.3,3.1512936]
[1768319773235,0.247,3174.8,3173.3,6.3025872]
[1768319773437,0.247,3174.8,3173.3,3.1512936]
[1768319773634,0.247,3174.8,3173.2,3.15138695]
[1768319773635,1.27367039,3174.8,3173.2,3.15137892]
[1768319774113,0.247,3174.7,3173.2,3.15137892]
[1768319774349,1.30946749,3174.6,3171.8,6.5505035]
[1768319774486,1.30946749,3174.6,3172.7,3.15181436]
[1768319774685,9.69730711,3174.5,3172.6,3.15191319]
[1768319775017,1.55646749,3174.4,3172.6,3.15190176]
[1768319775216,1.55646749,3174.4,3172.1,3.15244194]
[1768319775423,3.15010237,3174.5,3172.8,9.45535363]
[1768319775594,6.30020474,3174.5,3172.9,0.94553536]
[1768319775786,0.247,3174.4,3172.9,0.94553536]
[1768319775986,0.247,3174.4,3172.0,0.78004325]
[1768319776182,10.72834693,3174.5,3172.8,6.30357509]
[1768319776390,0.247,3174.4,3172.8,6.30357509]
[1768319776818,6.3006017,3174.3,3172.3,9.45686094]
[1768319777010,0.247,3174.2,3172.3,9.45686094]
[1768319777531,1.52503982,3174.2,3171.6,1.29431531]
[1768319777715,1.52503982,3174.2,3171.8,3.15270982]
[1768319777716,1.27803982,3174.0,3171.8,3.15270982]
[1768319778024,1.27803982,3174.0,3172.0,3.15258435]
[1768319778232,1.27803982,3173.8,3172.9,0.001]
[1768319778536,1.27803982,3173.8,3171.0,1.29431531]
[1768319778763,1.27803982,3173.7,3171.6,3.15294936]
[1768319778921,1.27803982,3173.5,3171.0,1.29431531]
[1768319779124,1.27803982,3173.5,3171.1,6.30695972]
[1768319779453,0.247,3173.4,3171.2,1.29431531]
[1768319779757,0.247,3173.3,3171.2,1.29431531]
[1768319780101,7.08484575,3173.6,3171.2,1.29431531]
[1768319780102,0.247,3173.2,3171.2,1.29431531]
[1768319780329,10.23584146,3173.6,3171.3,1.39082348]
[1768319780542,1.27803982,3173.2,3171.1,6.30695972]
[1768319780737,7.08484575,3173.6,3171.1,9.46043958]
[1768319780939,0.247,3173.5,3171.2,1.32584911]
[1768319781135,0.247,3173.5,3171.3,2.68829217]
[1768319781136,1.04828415,3173.4,3171.3,2.68829217]
[1768319781359,3.93385004,3173.6,3171.4,1.29431531]
[1768319781636,6.3006017,3174.3,3171.8,1.29431531]
[1768319781840,0.247,3174.2,3172.0,1.29431531]
[1768319782647,6.3006017,3174.3,3171.9,1.29431531]
[1768319782801,6.3006017,3174.3,3172.0,9.45775533]
[1768319782802,6.30119722,3174.0,3172.0,9.45775533]
[1768319783002,0.87711972,3173.9,3172.1,1.07520706]
[1768319783536,0.91291682,3173.9,3172.1,1.07520706]
[1768319783738,0.91291682,3173.9,3171.9,3.15268253]
[1768319783739,1.27803982,3173.8,3171.9,3.15268253]
[1768319784242,0.63011972,3173.9,3171.9,3.15268253]
[1768319784439,0.247,3173.8,3171.9,9.45805155]
[1768319784623,0.247,3173.7,3172.0,0.03152585]
[1768319784824,3.39792903,3173.7,3172.2,9.45715905]
[1768319785341,3.39792903,3173.7,3172.2,6.3047727]
[1768319785342,6.54885806,3173.7,3172.2,6.3047727]
[1768319785635,0.0357971,3173.6,3172.2,6.3047727]
[1768319786134,0.0357971,3173.6,3172.2,3.15238635]
[1768319786334,0.247,3173.5,3172.2,6.3047727]
[1768319786537,0.247,3173.4,3172.2,6.3047727]
[1768319786745,0.247,3173.4,3172.2,14.5]
[1768319786949,9.4538808,3173.3,3171.3,1.39397686]
[1768319787131,9.4538808,3173.3,3171.2,1.29431531]
[1768319787437,13.88321422,3173.3,3171.6,3.15295221]
[1768319787643,1.27803982,3173.2,3170.6,1.29431531]
[1768319787806,1.27803982,3173.2,3171.5,3.15305391]
[1768319788022,1.52503982,3173.1,3171.0,3.15353433]
[1768319788211,1.52503982,3173.1,3171.6,3.15292533]
[1768319788440,1.52503982,3173.1,3171.7,3.15286212]
[1768319788606,1.52503982,3173.1,3171.1,0.31535343]
[1768319788805,1.52503982,3173.1,3170.6,1.29431531]
[1768319788806,1.27803982,3172.9,3170.6,1.29431531]
[1768319789014,1.27803982,3172.9,3170.7,9.46163307]
[1768319789240,0.247,3172.8,3170.7,10.75594838]
[1768319789547,0.247,3172.7,3170.7,10.75594838]
[1768319790155,1.27803982,3173.2,3170.7,13.90982607]
[1768319790453,0.68993334,3173.1,3170.9,1.29431531]
[1768319790657,0.247,3173.0,3170.9,1.29431531]
[1768319791543,3.15169088,3172.9,3171.0,9.46173793]
[1768319791921,1.27803982,3172.8,3171.0,6.30815862]
[1768319792226,6.30338176,3172.9,3171.0,6.30815862]
[1768319792227,0.247,3172.7,3171.1,0.03153479]
[1768319792426,0.247,3172.7,3171.0,6.30815862]
[1768319792626,0.247,3172.6,3171.1,0.66235065]
[1768319792831,0.247,3172.6,3171.1,0.63081586]
[1768319793440,6.3039778,3172.6,3171.2,6.30676084]
[1768319793645,0.247,3172.5,3171.2,6.30676084]
[1768319793848,0.247,3172.5,3171.2,3.15338042]
[1768319794053,6.3039778,3172.6,3171.3,0.69376615]
[1768319794251,0.247,3172.4,3171.3,0.69376615]
[1768319794821,0.247,3172.4,3171.0,0.001]
[1768319795050,0.247,3172.4,3171.1,3.15346682]
[1768319795349,6.3039778,3172.6,3171.1,6.30694668]
[1768319795551,0.97020726,3172.7,3171.2,0.0315338]
[1768319795552,3.15218761,3172.4,3171.2,0.0315338]
[1768319795851,3.15218761,3172.4,3171.0,0.001]
[1768319796353,6.30437522,3172.4,3171.0,0.001]
[1768319796521,6.93481274,3172.4,3171.0,0.001]
[1768319796724,3.1512936,3173.3,3171.0,1.32915793]
[1768319796947,0.2827971,3173.2,3171.2,1.32815793]
[1768319797161,0.247,3173.1,3171.2,1.32815793]
[1768319797387,3.15079715,3173.8,3171.8,1.32815793]
[1768319797585,0.247,3173.7,3172.0,1.32815793]
[1768319797796,0.247,3173.7,3172.1,1.70915805]
[1768319799078,0.247,3173.7,3172.1,0.03152485]
[1768319799272,0.247,3173.7,3171.9,6.30536902]
[1768319799598,0.247,3173.7,3171.6,3.15294781]
[1768319799599,6.30199142,3173.6,3171.5,12.61232852]
[1768319799767,0.247,3173.5,3172.0,0.03152585]
[1768319800800,9.45298713,3173.6,3171.7,0.03152883]
[1768319800965,1.19229871,3173.5,3171.8,0.18007756]
[1768319801379,0.94529871,3173.5,3171.5,9.45924639]
[1768319801580,0.247,3173.4,3171.5,11.22849311]
[1768319801809,6.3025872,3173.3,3171.5,11.22849311]
[1768319802025,6.3025872,3173.3,3171.5,10.78740432]
[1768319802181,6.3025872,3173.3,3171.5,9.45924639]
[1768319802386,0.65495872,3173.2,3171.6,0.99503352]
[1768319802996,2.05059271,3173.2,3171.6,0.99503352]
[1768319803197,0.65495872,3173.2,3171.7,0.03152883]
[1768319803399,0.247,3173.1,3171.5,9.45924639]
[1768319803609,0.0357971,3173.0,3171.5,6.30616426]
[1768319803920,6.30338176,3172.9,3171.1,9.46043958]
[1768319804127,0.247,3172.8,3171.2,1.08395975]
[1768319804629,0.247,3172.8,3172.1,0.001]
[1768319805128,0.0357971,3172.7,3172.1,0.001]
[1768319805305,7.27715419,3172.9,3172.1,0.001]
[1768319805306,0.247,3172.6,3172.1,0.001]
[1768319805936,6.3041765,3172.5,3172.1,0.001]
[1768319806228,0.97032381,3172.4,3172.1,0.001]
[1768319806427,1.39763399,3173.2,3172.1,0.001]
[1768319806428,0.002,3173.2,3172.1,0.001]
[1768319806651,0.247,3173.1,3172.1,0.001]
[1768319807335,3.15339291,3173.2,3172.1,0.001]
[1768319807512,0.002,3173.2,3172.1,0.001]
[1768319807822,0.247,3173.1,3172.2,10.78531698]
[1768319808126,0.247,3173.1,3172.3,1.0786317]
[1768319808730,0.002,3173.2,3172.3,1.0786317]
[1768319808922,0.247,3173.1,3172.3,1.0786317]
[1768319810039,3.39850781,3173.1,3172.3,3.15228698]
[1768319811008,0.247,3173.0,3172.3,3.15228698]
[1768319811625,0.247,3173.0,3172.2,0.03152386]
[1768319811832,0.002,3173.2,3172.1,0.001]
[1768319812004,0.247,3172.9,3172.1,0.001]
[1768319813804,0.247,3172.8,3172.1,0.001]
[1768319814006,0.247,3172.8,3172.1,0.6316369]
[1768319814241,0.002,3173.2,3172.1,0.6316369]
[1768319814444,0.247,3173.1,3172.1,0.66316175]
[1768319815031,3.15343825,3173.2,3172.1,0.66316175]
[1768319815235,0.247,3173.0,3172.1,0.66316175]
[1768319815939,3.15152424,3173.1,3172.2,6.3047727]
[1768319816145,0.247,3173.0,3172.2,6.3047727]
[1768319816353,0.247,3173.0,3172.2,7.02993752]
[1768319816548,0.247,3173.0,3172.2,6.99841366]
[1768319817047,0.247,3173.0,3172.3,0.03152286]
[1768319817251,3.15150111,3173.1,3172.2,6.99841366]
[1768319817551,0.247,3173.0,3172.2,6.99841366]
[1768319817915,3.39860237,3173.0,3172.2,6.3047727]
[1768319818121,0.002,3172.7,3172.2,3.15238635]
[1768319818621,0.002,3172.7,3172.2,6.3047727]
[1768319819039,0.002,3173.0,3172.3,0.47261165]
[1768319819242,0.243,3172.9,3172.2,10.78531698]
[1768319819424,2e-08,3173.2,3172.3,1.0786317]
[1768319819623,2e-08,3173.1,3172.3,1.0786317]
[1768319820133,2e-08,3173.1,3172.4,6.30437522]
[1768319820334,2e-08,3173.1,3172.4,3.15218761]
[1768319820528,2e-08,3173.1,3172.3,4.23089665]
[1768319820769,0.002,3173.5,3172.4,1.32815793]
[1768319820935,0.002,3173.5,3172.6,1.32815793]
[1768319821330,0.002,3173.9,3172.7,1.35967682]
[1768319821525,0.002,3173.9,3172.8,1.32815793]
[1768319821748,3.1523599,3174.3,3173.1,1.32815793]
[1768319821749,0.002,3174.3,3173.1,1.32815793]
[1768319821933,0.002,3174.3,3173.3,1.32815793]
[1768319822134,0.247,3174.6,3173.4,9.4535829]
[1768319822767,0.247,3174.6,3173.4,10.78174083]
[1768319823171,0.247,3174.6,3173.4,7.63054653]
[1768319823466,1.64263399,3174.6,3173.4,3.1511943]
[1768319823626,0.1644634,3174.5,3173.2,3.88785991]
[1768319823964,0.1644634,3174.5,3173.3,3.15128735]
[1768319824193,3.15002275,3174.6,3173.0,1.32815793]
[1768319824461,6.30182182,3174.7,3173.0,1.32815793]
[1768319824636,6.30182182,3174.7,3172.9,9.45507264]
[1768319824637,1.43143109,3174.6,3172.9,6.30338176]
[1768319824839,1.39563399,3174.6,3172.9,6.30338176]
[1768319825180,9.45173273,3174.7,3172.9,6.30338176]
[1768319825181,2.512464,3174.5,3172.9,6.30338176]
[1768319825482,1.46352443,3174.4,3172.9,3.15169088]
[1768319825679,1.46352443,3174.4,3172.9,6.30020176]
[1768319825999,1.67472733,3174.3,3172.9,3.14851088]
[1768319826171,1.42772733,3174.1,3172.6,3.1519889]
[1768319826460,1.42772733,3173.9,3172.5,3.15206876]
[1768319826675,1.42772733,3173.9,3172.5,6.30415701]
[1768319827028,1.42772733,3173.9,3172.5,3.15206876]
[1768319828054,0.247,3173.8,3172.5,3.15206876]
[1768319828334,6.30179286,3173.7,3172.2,6.3047727]
[1768319828557,0.65487929,3173.6,3172.3,0.67006758]
[1768319828762,1.09147247,3174.0,3172.4,1.35660292]
[1768319828932,3.15010237,3174.5,3172.7,1.35660292]
[1768319829132,0.2827971,3174.4,3172.5,0.39490305]
[1768319829335,1.71052443,3174.4,3172.6,0.247]
[1768319829538,2.54381048,3174.3,3172.6,0.40736029]
[1768319829739,2.54381048,3174.3,3172.6,1.76396321]
[1768319829950,1.11608315,3174.3,3172.7,1.75150597]
[1768319830356,6.3008002,3174.2,3172.8,6.30358042]
[1768319830763,6.3365973,3174.2,3172.8,6.30358042]
[1768319831069,1.06030092,3174.1,3172.8,7.11133478]
[1768319831266,0.002,3173.6,3172.9,1.35660292]
[1768319831766,0.002,3173.6,3172.8,0.80775436]
[1768319831967,0.002,3173.6,3172.8,0.001]
[1768319832466,3.15299571,3173.6,3172.8,0.001]
[1768319833470,3.15299571,3173.6,3172.8,0.0325179]
[1768319833682,6.30399142,3173.6,3172.8,0.001]
[1768319833996,1.43272733,3175.0,3172.9,1.35660292]
[1768319834272,0.005,3175.0,3173.4,1.35660292]
[1768319834472,0.005,3175.0,3173.5,12.02186369]
[1768319834667,1e-08,3174.8,3173.5,11.54926395]
[1768319834831,1e-08,3174.8,3173.5,11.944167]
[1768319835036,1e-08,3174.8,3173.6,0.44108879]
[1768319835368,1e-08,3174.8,3173.7,0.03150896]
[1768319835567,1e-08,3174.8,3173.7,1.1975676]
[1768319835745,1e-08,3174.8,3173.8,0.03150797]
[1768319835941,1e-08,3174.8,3173.9,1.44339448]
[1768319836262,0.249,3175.2,3174.0,1.88448327]
[1768319836566,0.249,3175.2,3174.1,6.3009987]
[1768319836749,0.249,3175.2,3174.2,0.77443932]
[1768319837147,0.002,3175.2,3174.2,0.77443932]
[1768319838462,0.002,3175.2,3174.3,3.15030085]
[1768319838641,0.247,3175.1,3174.3,6.3006017]
[1768319838843,0.249,3175.2,3174.3,6.3006017]
[1768319839042,0.002,3175.2,3174.4,0.63006017]
[1768319839657,0.03126677,3175.7,3174.4,0.63006017]
[1768319839658,0.02297861,3176.9,3175.6,0.48491211]
[1768319839858,0.02297861,3176.9,3175.4,0.246]
[1768319840045,0.02297861,3176.9,3175.4,2.13388129]
[1768319840244,6.03715733,3177.9,3175.4,2.13388129]
[1768319840245,1.38603984,3177.9,3175.8,1.44339448]
[1768319840455,1.38603984,3177.7,3175.9,6.28703037]
[1768319840642,1.86761251,3177.6,3176.0,0.74704989]
[1768319840843,1.86761251,3177.6,3176.0,0.71932448]
[1768319841055,1.42183694,3177.5,3175.9,3.13485089]
[1768319841268,1.38603984,3177.5,3175.9,3.11920724]
[1768319841469,1.38603984,3177.5,3175.6,3.14900792]
[1768319841640,1.38603984,3177.3,3174.8,1.44339448]
[1768319841835,1.38603984,3177.3,3174.4,0.63006017]
[1768319842171,1.38603984,3177.1,3175.5,3.14910605]
[1768319842345,1.38603984,3176.9,3175.6,3.14900756]
[1768319842553,3.3948217,3176.8,3174.8,1.44339448]
[1768319842752,0.247,3176.7,3175.0,7.48055181]
[1768319842976,7.6815391,3176.9,3175.0,1.44339448]
[1768319843148,1.38603984,3176.6,3174.7,10.89303909]
[1768319843552,1.63303984,3176.5,3174.7,10.89303909]
[1768319843963,1.38603984,3176.5,3174.7,10.89303909]
[1768319844162,1.63303984,3176.4,3174.7,9.44964461]
[1768319844675,0.247,3176.3,3174.9,6.03715733]
[1768319844870,0.247,3176.3,3175.0,0.65077311]
[1768319845167,0.247,3176.3,3174.7,9.44964461]
[1768319845338,1.63303984,3176.3,3174.7,6.29974069]
[1768319845544,1.63303984,3176.3,3174.7,9.44964461]
[1768319845975,1.63303984,3176.3,3174.7,6.29974069]
[1768319846206,0.002,3176.5,3174.8,1.44339448]
[1768319846352,1.38803984,3178.1,3176.2,0.05]
[1768319846353,1.38603984,3178.0,3176.2,0.05]
[1768319846553,1.38603984,3178.0,3176.3,9.66425121]
[1768319846888,1.38603984,3177.9,3176.3,9.65485944]
[1768319847097,1.38603984,3177.9,3176.3,6.50654222]
[1768319847312,1.38603984,3177.7,3176.3,6.50654222]
[1768319847595,1.04810811,3177.7,3176.3,7.47204374]
[1768319847905,1.04810811,3177.7,3175.7,1.49339448]
[1768319847906,1.04810811,3177.7,3175.7,3.14887212]
[1768319848060,1.63303984,3177.6,3176.2,3.1484088]
[1768319848262,1.38603984,3177.6,3175.4,6.03715733]
[1768319848462,6.29445458,3177.4,3175.4,6.2983808]
[1768319848673,4.53326713,3177.4,3175.4,9.44759034]
[1768319849003,1.38603984,3177.2,3175.5,1.40402521]
[1768319849155,1.38603984,3177.2,3175.5,0.0314911]
[1768319849356,1.38603984,3177.2,3174.9,1.45938926]
[1768319849357,0.247,3177.1,3175.3,6.29860398]
[1768319849604,1.63303984,3177.1,3175.3,3.14930564]
[1768319850085,1.38603984,3176.9,3175.3,6.29861436]
[1768319850292,1.54934382,3176.8,3175.4,0.62986144]
[1768319850494,4.53395298,3176.8,3175.5,3.14911037]
[1768319850662,1.63303984,3176.7,3175.5,6.29822074]
[1768319851006,1.63303984,3176.7,3175.5,3.14911037]
[1768319851511,1.63303984,3176.7,3174.9,0.246]